bitfinex-derivatives/quotes_ETHF0:USTF0_20250927
["timestamp","ask_amount","ask_price","bid_price","bid_amount"]
[1758973340603,2.29274217,4004.5,4004.4,1.01582586]
[1758973340901,0.45160434,4004.5,4004.4,1.01582586]
[1758973349501,0.96211458,4004.5,4004.4,1.01582586]
[1758973350707,0.00239434,4004.5,4004.4,4.67284586]
[1758973351008,0.00239434,4004.5,4004.4,9.67284586]
[1758973352505,0.44916,4005.0,4004.9,1.22947]
[1758973352703,0.96263584,4005.0,4004.9,1.48047]
[1758973352898,0.51347584,4005.0,4004.9,1.48047]
[1758973353311,0.44914,4005.2,4005.1,1.22944]
[1758973353612,0.96492034,4005.2,4005.1,1.22944]
[1758973353808,0.96492034,4005.2,4005.1,0.7803]
[1758973355818,0.96492034,4005.2,4005.1,1.22944]
[1758973359515,0.51578034,4005.2,4005.1,1.22944]
[1758973360317,0.00230217,4005.2,4005.1,1.22944]
[1758973366014,0.45143217,4005.2,4005.1,1.22944]
[1758973366717,0.00230217,4005.2,4005.1,1.22944]
[1758973377927,0.00230217,4005.2,4005.1,4.43724]
[1758973379134,0.00230217,4005.2,4005.1,4.68824]
[1758973379925,0.00230217,4005.2,4005.1,1.48044]
[1758973380226,0.00230217,4005.2,4005.1,4.68824]
[1758973381822,0.4491,4005.5,4005.1,4.68824]
[1758973381823,0.4491,4005.5,4005.4,0.88251]
[1758973382029,0.44906,4005.9,4005.8,1.21546]
[1758973382230,0.96334167,4005.9,4005.8,1.46646]
[1758973382841,0.96636142,4005.9,4005.8,1.46646]
[1758973383526,1.41463783,4006.1,4005.8,1.46646]
[1758973383724,0.96322814,4006.0,4005.9,0.7664]
[1758973384629,0.96562096,4006.0,4005.9,0.7664]
[1758973388132,0.96562096,4006.0,4005.9,0.584]
[1758973388534,0.96562096,4006.0,4005.9,0.7972]
[1758973389240,0.51657096,4006.0,4005.9,1.46566]
[1758973392242,0.00239282,4006.0,4005.9,1.46566]
[1758973397942,0.00239282,4006.0,4005.9,4.67346]
[1758973406352,0.51438429,4006.0,4005.9,4.67346]
[1758973407347,0.96342429,4006.0,4005.9,4.67346]
[1758973409551,0.51438429,4006.0,4005.9,4.67346]
[1758973411857,0.51438429,4006.0,4005.9,4.42246]
[1758973412057,0.51438429,4006.0,4005.9,4.67246]
[1758973412858,0.449,4006.5,4006.2,0.4503]
[1758973413049,0.449,4006.5,4006.4,3.9889]
[1758973413255,0.96061785,4006.5,4006.4,3.9889]
[1758973413959,0.96250556,4006.5,4006.4,4.43789]
[1758973414857,0.96250556,4006.5,4006.4,3.9889]
[1758973417453,0.45088771,4006.5,4006.4,3.9889]
[1758973417653,0.45088771,4006.5,4006.4,4.014]
[1758973417958,2.09639838,4006.5,4006.4,4.2389]
[1758973430067,2.09639838,4006.5,4006.4,1.0311]
[1758973430273,2.09639838,4006.5,4006.4,4.2389]
[1758973443176,0.96247482,4006.5,4006.4,4.2389]
[1758973444284,0.96247482,4006.5,4006.4,3.9889]
[1758973444485,0.96247482,4006.5,4006.4,4.2389]
[1758973453293,1.13392356,4006.7,4006.6,0.7633]
[1758973453592,1.13392356,4006.7,4006.6,1.0133]
[1758973454089,1.58289356,4006.7,4006.6,1.0133]
[1758973454290,1.58544871,4006.7,4006.6,1.0133]
[1758973456785,1.58544871,4006.7,4006.5,0.5823]
[1758973456786,0.44898,4006.6,4006.5,0.5823]
[1758973457196,0.44898,4006.6,4006.5,0.25]
[1758973457389,0.44898,4006.6,4006.5,0.9283]
[1758973458696,0.44898,4006.6,4006.5,0.7072]
[1758973460494,0.449,4006.4,4006.3,0.1996]
[1758973460895,0.44902,4006.2,4006.1,0.3323]
[1758973461098,0.44903,4006.1,4006.0,0.7075]
[1758973461594,1.86202539,4006.1,4006.0,0.7075]
[1758973463899,1.86202539,4006.1,4006.0,0.4575]
[1758973464205,0.44904,4006.0,4005.9,3.2078]
[1758973464506,0.44904,4006.0,4005.9,3.5483]
[1758973465099,0.44904,4006.0,4005.9,0.3405]
[1758973465304,0.95394028,4006.0,4005.9,0.3405]
[1758973466504,0.95394028,4006.0,4005.9,0.5465]
[1758973472809,0.95394028,4006.0,4005.9,0.7737]
[1758973473010,0.95394028,4006.0,4005.9,3.9815]
[1758973473209,0.44904,4006.0,4005.9,3.9815]
[1758973473502,0.44903,4006.2,4005.9,3.9815]
[1758973473708,0.44903,4006.2,4006.1,0.7737]
[1758973473906,0.95220886,4006.2,4006.1,0.7737]
[1758973484012,0.95220886,4006.2,4006.1,0.5465]
[1758973484211,0.95220886,4006.2,4006.1,0.5905]
[1758973485014,0.95220886,4006.2,4006.1,0.7965]
[1758973485211,0.44905,4006.0,4005.9,3.2078]
[1758973485414,2.36522425,4006.0,4005.9,3.2078]
[1758973485718,2.36522425,4006.0,4005.9,3.5483]
[1758973487313,2.36522425,4006.0,4005.9,3.9815]
[1758973487517,0.95222886,4006.0,4005.9,4.2315]
[1758973490014,0.50317886,4006.0,4005.9,4.2315]
[1758973490322,1.86199539,4006.4,4006.3,0.7737]
[1758973490519,2.36592969,4006.4,4006.3,0.7737]
[1758973497430,2.36592969,4006.4,4006.3,0.3405]
[1758973500535,0.44903,4006.1,4006.0,0.1301]
[1758973500835,1.86202539,4006.1,4006.0,0.1301]
[1758973501027,2.36595969,4006.1,4006.0,0.4535]
[1758973504235,2.36595969,4006.1,4006.0,0.8912]
[1758973504437,0.9529643,4006.1,4006.0,0.8912]
[1758973504640,0.9529643,4006.1,4006.0,1.1412]
[1758973518649,2.08708971,4006.1,4006.0,1.1412]
[1758973531355,0.5039343,4006.1,4006.0,1.59025]
[1758973531555,0.44898,4006.6,4006.5,0.8865]
[1758973531850,0.45152515,4006.7,4006.6,0.7585]
[1758973539867,0.45392515,4006.7,4006.6,0.3235]
[1758973540069,0.45138,4006.6,4006.5,3.6593]
[1758973540366,2.71963082,4006.6,4006.5,3.9093]
[1758973540966,1.58550541,4006.6,4006.5,3.9093]
[1758973541163,1.58550541,4006.6,4006.5,3.6593]
[1758973541471,1.58550541,4006.6,4006.4,0.1996]
[1758973541472,0.45139,4006.5,4006.4,0.1996]
[1758973541861,0.45141,4006.3,4006.2,0.3235]
[1758973542066,1.58553541,4006.3,4006.2,0.3235]
[1758973543570,2.08951333,4006.3,4006.2,0.3235]
[1758973545370,0.45143,4006.1,4006.0,3.8611]
[1758973545667,0.95540792,4006.1,4006.0,3.8611]
[1758973546772,0.95540792,4006.1,4006.0,4.0777]
[1758973547360,0.95540792,4006.1,4006.0,4.2961]
[1758973547673,0.95300792,4006.1,4006.0,4.2961]
[1758973547865,0.95300792,4006.1,4006.0,4.3464]
[1758973550873,0.95540792,4006.1,4006.0,4.3464]
[1758973551872,0.95300792,4006.1,4006.0,4.3464]
[1758973556273,0.95300792,4006.1,4006.0,4.0964]
[1758973560774,0.44903,4006.1,4006.0,4.0964]
[1758973560977,0.95300781,4006.1,4006.0,4.0964]
[1758973561979,1.20300781,4006.1,4006.0,3.878]
[1758973562176,1.20300781,4006.1,4006.0,0.6702]
[1758973562766,1.20300781,4006.1,4006.0,0.8964]
[1758973564370,0.95300781,4006.1,4006.0,0.8964]
[1758973580589,2.36672529,4006.1,4006.0,0.8964]
[1758973580784,2.36672529,4006.1,4006.0,0.6702]
[1758973580990,2.36672529,4006.1,4006.0,0.4536]
[1758973588698,2.61672529,4006.1,4006.0,0.4536]
[1758973593802,2.61672529,4006.1,4006.0,0.6616]
[1758973596400,0.44906,4005.9,4005.8,0.1997]
[1758973596605,1.20303781,4005.9,4005.8,0.4077]
[1758973596806,1.20303781,4005.9,4005.8,0.208]
[1758973596997,1.20303781,4005.9,4005.8,0.5169]
[1758973601519,1.20303781,4005.9,4005.8,0.3089]
[1758973603518,1.20303781,4005.9,4005.8,0.5169]
[1758973605921,4.41083781,4005.9,4005.8,0.5169]
[1758973606522,4.41083781,4005.9,4005.8,0.3089]
[1758973607820,1.19338,4005.7,4005.6,0.1997]
[1758973608016,0.66335,4005.1,4005.0,3.7596]
[1758973608215,2.58104529,4005.1,4005.0,3.7596]
[1758973608412,2.80344529,4005.1,4005.0,3.7596]
[1758973608818,2.58104529,4005.1,4005.0,3.7596]
[1758973609018,2.80344529,4005.1,4005.0,3.7596]
[1758973609924,2.80344529,4005.1,4005.0,4.0685]
[1758973610123,2.80344529,4005.1,4005.0,0.8607]
[1758973610425,3.11114529,4005.1,4005.0,0.8607]
[1758973610926,2.80344529,4005.1,4005.0,0.8607]
[1758973611125,2.36684529,4005.1,4005.0,0.8607]
[1758973611318,2.80344529,4005.1,4005.0,0.8607]
[1758973611514,2.36684529,4005.1,4005.0,0.8607]
[1758973613429,2.58104529,4005.1,4005.0,0.8607]
[1758973614525,2.61684529,4005.1,4005.0,0.8607]
[1758973614830,2.84234529,4005.1,4005.0,0.8607]
[1758973616129,2.36684529,4005.1,4005.0,0.8607]
[1758973617420,0.95312781,4005.1,4005.0,5.8607]
[1758973617619,0.95312781,4005.1,4005.0,9.0685]
[1758973634538,0.95312781,4005.1,4005.0,9.3185]
[1758973637442,1.39702781,4005.1,4005.0,4.0685]
[1758973637635,1.70612781,4005.1,4005.0,3.5167]
[1758973638034,0.89311,4004.5,4004.4,0.51702586]
[1758973638233,6.32770529,4004.5,4004.4,0.74002586]
[1758973638542,6.32770529,4004.5,4004.4,0.75252586]
[1758973638844,2.36690529,4004.5,4004.4,1.00352586]
[1758973640244,2.58370529,4004.5,4004.4,1.00352586]
[1758973642647,2.30510448,4004.5,4004.4,1.00352586]
[1758973651053,2.30359432,4004.5,4004.4,1.00352586]
[1758973653157,2.52379432,4004.5,4004.4,1.00352586]
[1758973656257,2.83279432,4004.5,4004.4,1.00352586]
[1758973661960,2.93869432,4004.5,4004.4,0.25302586]
[1758973662859,2.93869432,4004.5,4004.4,0.00202586]
[1758973666060,0.88707,4004.0,4003.9,0.3331]
[1758973666259,0.88707,4004.0,4003.6,0.25]
[1758973666260,0.4493,4003.7,4003.6,0.3331]
[1758973666464,2.43772784,4003.7,4003.6,0.3331]
[1758973666763,2.94019549,4003.7,4003.6,0.3331]
[1758973667271,2.94019549,4003.7,4003.6,0.55752656]
[1758973667272,2.94325083,4003.7,4003.6,0.55752656]
[1758973667471,2.94325083,4003.7,4003.6,0.00292656]
[1758973667765,2.94325083,4003.7,4003.6,0.33602656]
[1758973668267,2.94325083,4003.7,4003.6,0.00292656]
[1758973671471,2.94315311,4003.7,4003.6,0.00292656]
[1758973676166,1.49903644,4003.7,4003.6,0.76322656]
[1758973676366,2.41395311,4003.7,4003.6,0.76322656]
[1758973677168,2.63015311,4003.7,4003.6,0.76322656]
[1758973678279,2.93945311,4003.7,4003.6,0.76322656]
[1758973679876,2.93925141,4003.7,4003.6,0.76322656]
[1758973680880,2.12748376,4003.7,4003.6,0.76322656]
[1758973681077,2.19640895,4003.7,4003.6,0.76322656]
[1758973682281,2.93930895,4003.7,4003.6,0.54752656]
[1758973682481,2.63000895,4003.7,4003.6,0.76322656]
[1758973682884,2.19640895,4003.7,4003.6,0.76322656]
[1758973684084,0.45235534,4003.7,4003.6,1.01422656]
[1758973685383,0.00305534,4003.7,4003.6,1.01422656]
[1758973686087,0.45235534,4003.7,4003.6,1.01422656]
[1758973686284,0.00305534,4003.7,4003.6,1.01422656]
[1758973686693,0.00305534,4003.7,4003.6,6.46353656]
[1758973687981,0.4492,4004.6,4004.5,0.1359]
[1758973688193,0.95220094,4004.6,4004.5,0.5609]
[1758973688481,0.50300094,4004.6,4004.5,1.01011]
[1758973688685,1.63811761,4004.6,4004.5,1.32391]
[1758973688987,1.58656751,4004.6,4004.5,0.8747]
[1758973689185,1.79276751,4004.6,4004.5,0.8747]
[1758973689870,2.29557911,4004.6,4004.5,0.8747]
[1758973690277,1.79276751,4004.6,4004.5,0.8747]
[1758973690480,2.29547135,4004.6,4004.5,0.8747]
[1758973691282,1.79276751,4004.6,4004.5,0.8747]
[1758973691681,2.29540159,4004.6,4004.5,0.8747]
[1758973692185,1.79276751,4004.6,4004.5,0.8747]
[1758973697687,2.01726751,4004.6,4004.5,0.8747]
[1758973700688,0.88215084,4004.6,4004.5,0.8747]
[1758973700890,2.01726751,4004.6,4004.5,0.8747]
[1758973704592,2.29649156,4004.6,4004.5,0.8747]
[1758973707095,2.79867923,4004.6,4004.5,0.8747]
[1758973708598,3.10777923,4004.6,4004.5,0.8747]
[1758973709092,0.44922,4004.4,4004.3,0.1997]
[1758973709292,1.68990767,4004.4,4004.3,0.1997]
[1758973709498,1.18777,4004.0,4003.9,3.2078]
[1758973709795,2.60211072,4004.0,4003.9,3.4578]
[1758973710098,2.60211072,4004.0,4003.9,3.7905]
[1758973710490,3.10925438,4004.0,4003.9,3.7905]
[1758973710691,3.10925438,4004.0,4003.9,3.4578]
[1758973710892,3.21075438,4004.0,4003.9,3.4578]
[1758973714501,3.10925438,4004.0,4003.9,3.7905]
[1758973714906,3.10925438,4004.0,4003.9,3.5405]
[1758973716303,3.10925438,4004.0,4003.9,3.763]
[1758973716499,2.80015438,4004.0,4003.9,3.9727]
[1758973722811,3.10925438,4004.0,4003.9,3.9727]
[1758973724521,2.80015438,4004.0,4003.9,3.9727]
[1758973726808,0.95641366,4004.0,4003.9,3.9727]
[1758973731618,0.50714366,4004.0,4003.9,4.42198]
[1758973731821,0.44924,4004.3,4004.0,0.44926]
[1758973732130,0.44924,4004.3,4004.2,0.7649]
[1758973732328,0.95709581,4004.3,4004.2,0.7649]
[1758973738424,1.16259581,4004.3,4004.2,0.7649]
[1758973746126,1.38799581,4004.3,4004.2,0.7649]
[1758973746332,1.69669581,4004.3,4004.2,0.7649]
[1758973749836,1.38799581,4004.3,4004.2,0.7649]
[1758973753640,1.69709581,4004.3,4004.2,0.7649]
[1758973755137,0.87826,4004.1,4004.0,0.5157]
[1758973755337,3.10955653,4004.1,4004.0,0.1998]
[1758973755539,1.18737,4004.0,4003.9,3.4578]
[1758973755741,1.69522581,4004.0,4003.9,3.7737]
[1758973757938,1.69522581,4004.0,4003.9,3.9879]
[1758973760741,1.69522581,4004.0,4003.9,3.7737]
[1758973761443,1.69522581,4004.0,4003.9,3.9879]
[1758973762341,1.69522581,4004.0,4003.9,4.1957]
[1758973762542,1.17682581,4004.0,4003.9,4.1957]
[1758973764546,2.31211276,4004.0,4003.9,4.1957]
[1758973767449,0.95712581,4004.0,4003.9,4.1957]
[1758973767650,2.09241276,4004.0,4003.9,4.1957]
[1758973770852,0.50785581,4004.0,4003.9,4.64498]
[1758973771058,0.67845084,4004.6,4004.5,0.9198]
[1758973771249,2.32123039,4004.6,4004.5,0.9198]
[1758973777167,2.84403039,4004.6,4004.5,0.9198]
[1758973779669,2.32123039,4004.6,4004.5,0.9198]
[1758973779869,2.84403039,4004.6,4004.5,0.9198]
[1758973789378,0.67621,4004.5,4004.4,0.3366]
[1758973789570,0.88992,4004.4,4004.3,0.1997]
[1758973789774,1.9565126,4004.4,4004.3,0.1997]
[1758973789978,0.44928,4003.9,4003.8,0.3366]
[1758973790180,2.53275955,4003.9,4003.8,0.3366]
[1758973790479,2.84185955,4003.9,4003.8,0.3366]
[1758973791479,0.89,4003.7,4003.6,3.46072656]
[1758973791685,1.7065926,4003.7,4003.6,3.79732656]
[1758973792182,1.7065926,4003.7,4003.6,4.02472656]
[1758973792884,1.7065926,4003.7,4003.6,3.77472656]
[1758973794686,1.7065926,4003.7,4003.6,0.56692656]
[1758973794983,1.81174253,4003.7,4003.6,0.56692656]
[1758973795979,1.81174253,4003.7,4003.6,0.33952656]
[1758973797289,1.81174253,4003.7,4003.6,0.00292656]
[1758973797887,1.81174253,4003.7,4003.6,0.32852656]
[1758973798289,1.81174253,4003.7,4003.6,0.00292656]
[1758973799190,1.81174253,4003.7,4003.6,0.32852656]
[1758973799890,1.81174253,4003.7,4003.6,0.55252656]
[1758973800484,1.81174253,4003.7,4003.6,0.00292656]
[1758973800682,2.06174253,4003.7,4003.6,0.00292656]
[1758973801884,1.81174253,4003.7,4003.6,0.55252656]
[1758973802084,2.06174253,4003.7,4003.6,0.55252656]
[1758973806189,2.06118405,4003.7,4003.6,0.55252656]
[1758973806389,1.81118405,4003.7,4003.6,0.77722656]
[1758973806701,1.75208405,4003.7,4003.6,0.77722656]
[1758973806890,1.50208405,4003.7,4003.6,0.77722656]
[1758973807089,1.49970161,4003.7,4003.6,0.77722656]
[1758973807489,1.80890161,4003.7,4003.6,0.77722656]
[1758973809294,1.80890161,4003.7,4003.6,0.33232656]
[1758973809695,1.80890161,4003.7,4003.6,0.55402656]
[1758973811896,1.80887457,4003.7,4003.6,0.55402656]
[1758973812796,1.30376441,4003.7,4003.6,0.55402656]
[1758973813000,1.80877317,4003.7,4003.6,0.55402656]
[1758973814796,1.49957317,4003.7,4003.6,0.77292656]
[1758973817095,1.49964476,4003.7,4003.6,0.77292656]
[1758973821104,1.39500876,4003.7,4003.6,0.77292656]
[1758973821402,1.05905605,4003.7,4003.6,0.77292656]
[1758973823903,1.28635605,4003.7,4003.6,0.77292656]
[1758973825297,1.28643211,4003.7,4003.6,0.77292656]
[1758973826005,1.05913211,4003.7,4003.6,0.77292656]
[1758973826406,1.74511906,4003.7,4003.6,0.77292656]
[1758973826606,0.60983211,4003.7,4003.6,0.77292656]
[1758973826906,1.05913211,4003.7,4003.6,0.77292656]
[1758973827708,1.28643211,4003.7,4003.6,0.77292656]
[1758973829504,1.28647672,4003.7,4003.6,0.77292656]
[1758973829807,1.18160876,4003.7,4003.6,0.77292656]
[1758973830005,1.28647367,4003.7,4003.6,0.77292656]
[1758973836407,1.82157367,4003.7,4003.6,0.00292656]
[1758973836607,3.23648825,4003.7,4003.6,0.00292656]
[1758973837023,1.82157367,4003.7,4003.6,0.31662656]
[1758973837218,3.23648825,4003.7,4003.6,0.53912656]
[1758973837616,3.23648825,4003.7,4003.6,0.00292656]
[1758973840826,3.48648825,4003.7,4003.6,0.00292656]
[1758973843225,3.48648825,4003.7,4003.6,0.31662656]
[1758973846125,3.38162334,4003.7,4003.6,0.31662656]
[1758973846322,3.48649558,4003.7,4003.6,0.31662656]
[1758973848031,3.23649558,4003.7,4003.6,0.31662656]
[1758973848329,3.48649558,4003.7,4003.6,0.31662656]
[1758973850225,3.38162334,4003.7,4003.6,0.31662656]
[1758973850431,3.48649505,4003.7,4003.6,0.31662656]
[1758973858234,3.23649505,4003.7,4003.6,0.31662656]
[1758973858538,3.48649505,4003.7,4003.6,0.31662656]
[1758973859137,3.23649505,4003.7,4003.6,0.31662656]
[1758973859339,3.48649505,4003.7,4003.6,0.54182656]
[1758973859734,3.48649505,4003.7,4003.6,0.31662656]
[1758973860438,3.48649505,4003.7,4003.6,0.54182656]
[1758973861838,3.23649505,4003.7,4003.6,0.74832656]
[1758973862039,1.51278047,4003.7,4003.6,0.74832656]
[1758973867241,1.82208047,4003.7,4003.6,0.74832656]
[1758973868434,1.51278047,4003.7,4003.6,0.74832656]
[1758973869442,0.83718047,4003.7,4003.6,0.74832656]
[1758973869639,0.60988047,4003.7,4003.6,0.99832656]
[1758973870035,0.50500876,4003.7,4003.6,0.99832656]
[1758973870237,0.50500876,4003.7,4003.6,1.44763656]
[1758973871443,0.95430876,4003.7,4003.6,1.44763656]
[1758973874544,0.50500876,4003.7,4003.6,1.44763656]
[1758973875141,0.44929,4003.8,4003.7,0.4493]
[1758973875343,0.95601927,4003.8,4003.7,1.2058]
[1758973877352,0.67555,4004.2,4004.1,0.2165]
[1758973877546,1.18215327,4004.2,4004.1,1.45576]
[1758973885859,1.18215327,4004.2,4004.1,1.0065]
[1758973886058,1.40435327,4004.2,4004.1,1.0065]
[1758973887558,2.81926785,4004.2,4004.1,1.0065]
[1758973888556,2.84894723,4004.2,4004.1,0.25]
[1758973888752,1.20267,4004.0,4003.9,0.1998]
[1758973888956,1.81383107,4004.0,4003.9,0.1998]
[1758973889157,1.2027,4003.7,4003.6,0.25292656]
[1758973889461,2.94935503,4003.7,4003.6,0.25292656]
[1758973890663,2.94935503,4003.7,4003.6,0.00292656]
[1758973899774,3.19935503,4003.7,4003.6,0.52212656]
[1758973902971,3.19928218,4003.7,4003.6,0.52212656]
[1758973906577,2.94928218,4003.7,4003.6,0.52212656]
[1758973906877,3.19928218,4003.7,4003.6,0.52212656]
[1758973907479,2.64018218,4003.7,4003.6,0.73292656]
[1758973908681,1.74658218,4003.7,4003.6,0.73292656]
[1758973909375,2.19588218,4003.7,4003.6,0.73292656]
[1758973910383,2.42048218,4003.7,4003.6,0.73292656]
[1758973911686,0.61108822,4003.7,4003.6,1.18223656]
[1758973911885,0.50660327,4003.7,4003.6,1.18223656]
[1758973912085,0.95590327,4003.7,4003.6,1.18223656]
[1758973912889,0.95590327,4003.7,4003.6,0.73292656]
[1758973914288,0.95590327,4003.7,4003.6,1.18223656]
[1758973917990,1.18150327,4003.7,4003.6,0.73292656]
[1758973918289,1.18150327,4003.7,4003.6,1.18223656]
[1758973921088,0.73220327,4003.7,4003.6,4.39003656]
[1758973921288,2.31699723,4003.7,4003.6,4.39003656]
[1758973922084,1.86769723,4003.7,4003.6,4.39003656]
[1758973922287,2.31699723,4003.7,4003.6,4.39003656]
[1758973922793,1.86769723,4003.7,4003.6,4.39003656]
[1758973929102,0.50660327,4003.7,4003.6,4.39003656]
[1758973933299,0.95590327,4003.7,4003.6,4.39003656]
[1758973934702,1.16170327,4003.7,4003.6,4.39003656]
[1758973934997,0.71240327,4003.7,4003.6,4.39003656]
[1758973935197,0.95590327,4003.7,4003.6,4.39003656]
[1758973938101,0.50660327,4003.7,4003.6,4.39003656]
[1758973940092,0.95590327,4003.7,4003.6,4.39003656]
[1758973940902,0.50660327,4003.7,4003.6,4.39003656]
[1758973941102,2.29719723,4003.7,4003.6,4.39003656]
[1758973941294,2.29719723,4003.7,4003.6,4.39004656]
[1758973950610,1.16170327,4003.7,4003.6,4.39004656]
[1758973951511,1.68820327,4003.7,4003.6,3.46072656]
[1758973951708,1.7930885,4003.7,4003.6,3.79142656]
[1758973952007,1.7930885,4003.7,4003.6,4.01742656]
[1758973953502,1.7930885,4003.7,4003.6,4.22782656]
[1758973953703,0.95590327,4003.7,4003.6,4.67714656]
[1758973955707,0.95590327,4003.7,4003.6,1.46934656]
[1758973956419,0.95590327,4003.7,4003.6,1.02002656]
[1758973956617,1.38970327,4003.7,4003.6,1.02002656]
[1758973957411,1.49456172,4003.7,4003.6,1.02002656]
[1758973957919,1.49456179,4003.7,4003.6,0.77002656]
[1758973958218,1.38970327,4003.7,4003.6,1.02002656]
[1758973958804,1.69900327,4003.7,4003.6,1.02002656]
[1758973959026,1.80385999,4003.7,4003.6,1.02002656]
[1758973959212,1.38970327,4003.7,4003.6,1.02002656]
[1758973961617,0.95590327,4003.7,4003.6,1.46934656]
[1758973961810,0.95590327,4003.7,4003.6,1.02002656]
[1758973962418,1.17250327,4003.7,4003.6,1.02002656]
[1758973963718,1.80385531,4003.7,4003.6,1.02002656]
[1758973964118,1.49455531,4003.7,4003.6,1.02002656]
[1758973964821,1.38970327,4003.7,4003.6,1.02002656]
[1758973967129,1.49455816,4003.7,4003.6,1.02002656]
[1758973968019,1.38970327,4003.7,4003.6,1.02002656]
[1758973968324,1.49456437,4003.7,4003.6,1.02002656]
[1758973969423,1.38970327,4003.7,4003.6,1.02002656]
[1758973975219,0.95590327,4003.7,4003.6,1.02002656]
[1758973975420,1.16470327,4003.7,4003.6,1.02002656]
[1758973977927,1.38970327,4003.7,4003.6,1.02002656]
[1758973979032,1.38970327,4003.7,4003.6,0.00292656]
[1758973979033,3.11376884,4003.7,4003.6,0.00292656]
[1758973979230,3.11376884,4003.7,4003.6,0.31722656]
[1758973979425,3.11376884,4003.7,4003.6,0.74462656]
[1758973980234,1.38970327,4003.7,4003.6,0.74462656]
[1758973980531,0.95590327,4003.7,4003.6,0.74462656]
[1758973981331,0.50660327,4003.7,4003.6,1.19394656]
[1758973981635,0.00225084,4004.6,4003.6,1.19394656]
[1758973981636,0.66025084,4004.6,4004.5,0.8769]
[1758973981826,0.00225084,4004.6,4004.5,1.1269]
[1758973982033,0.00225084,4004.6,4004.5,2.54176557]
[1758973982228,0.00225084,4004.6,4004.5,1.1269]
[1758973983023,2.16011641,4004.6,4004.5,0.5643]
[1758973983532,2.16011641,4004.6,4004.5,0.3143]
[1758973983727,1.19225,4004.2,4004.1,3.7362]
[1758973983924,1.19225,4004.2,4004.1,4.1995]
[1758973984729,1.19225,4004.2,4004.1,3.9495]
[1758973984935,1.19225,4004.2,4004.1,4.1995]
[1758973985839,0.88305,4004.2,4004.1,4.1995]
[1758973986132,0.44925,4004.2,4004.1,4.1995]
[1758973986331,0.65805,4004.2,4004.1,4.1995]
[1758973987440,1.19225,4004.2,4004.1,4.1995]
[1758973991048,0.88305,4004.2,4004.1,4.1995]
[1758973997047,1.19235,4004.2,4004.1,3.9495]
[1758973997247,1.18717,4004.0,4003.9,0.5201]
[1758973997548,0.4286,4003.8,4003.6,3.21072656]
[1758973997751,2.79556542,4003.7,4003.6,3.21072656]
[1758973997952,3.20945909,4003.7,4003.6,3.53102656]
[1758973998549,8.20945909,4003.7,4003.6,0.00292656]
[1758974000552,0.66756,4002.3,4002.2,0.16077]
[1758974000744,0.60739352,4002.3,4002.2,1.14907]
[1758974000949,0.10459367,4002.3,4002.2,1.14907]
[1758974001464,0.10459367,4002.3,4002.2,1.15138276]
[1758974004145,0.66756,4002.3,4002.2,0.90038276]
[1758974004349,0.10433089,4002.3,4002.2,1.15138276]
[1758974010963,0.10433089,4002.3,4002.2,1.60085276]
[1758974011655,1.58557094,4002.4,4002.2,1.60085276]
[1758974011966,1.58557094,4002.4,4002.3,0.7427]
[1758974012260,1.68734915,4002.4,4002.3,0.7427]
[1758974016864,0.10177821,4002.4,4002.3,1.19216]
[1758974017563,0.55122821,4002.4,4002.3,0.7427]
[1758974019766,0.10177821,4002.4,4002.3,0.7427]
[1758974020069,0.55122821,4002.4,4002.3,0.7427]
[1758974023070,0.44941,4002.9,4002.6,0.44942]
[1758974023371,0.44937,4003.1,4003.0,0.5389]
[1758974023675,0.44937,4003.1,4003.0,0.7909]
[1758974023873,0.44937,4003.1,4003.0,1.1182]
[1758974026564,0.44937,4003.1,4003.0,1.56758]
[1758974026767,0.44936,4003.3,4003.2,0.7427]
[1758974027274,0.95024074,4003.3,4003.2,0.7427]
[1758974027475,0.9504144,4003.3,4003.2,1.19206]
[1758974027772,0.44935,4003.3,4003.2,0.7427]
[1758974028067,1.13612094,4003.6,4003.2,0.86475]
[1758974028273,1.35782094,4003.6,4003.5,0.8662]
[1758974028466,1.85893244,4003.6,4003.5,0.8662]
[1758974029070,2.06653244,4003.6,4003.5,0.8662]
[1758974029269,2.51585244,4003.6,4003.5,0.8662]
[1758974031168,2.82675244,4003.6,4003.5,0.8662]
[1758974035082,2.92834022,4003.6,4003.5,0.8662]
[1758974036075,2.16812022,4003.6,4003.5,0.8662]
[1758974036770,2.06653244,4003.6,4003.5,0.8662]
[1758974037878,2.51585244,4003.6,4003.5,0.8662]
[1758974038578,1.56542094,4003.6,4003.5,0.8662]
[1758974038783,1.56542094,4003.6,4003.5,1.31553]
[1758974039084,2.01474094,4003.6,4003.5,0.8662]
[1758974039281,2.32394094,4003.6,4003.5,0.8662]
[1758974039786,2.32394094,4003.6,4003.5,0.6571]
[1758974039984,2.82458205,4003.6,4003.5,0.6571]
[1758974040385,2.82458205,4003.6,4003.5,0.5336]
[1758974041283,2.82458205,4003.6,4003.5,0.3273]
[1758974041474,1.19024,4003.4,4003.3,3.6596]
[1758974041680,2.42778576,4003.4,4003.3,3.4076]
[1758974041987,7.92843362,4003.4,4003.3,3.2078]
[1758974042682,8.17943362,4003.4,4003.3,3.2078]
[1758974043084,1.19027,4003.1,4003.0,0.251]
[1758974043386,2.92846362,4003.1,4003.0,0.251]
[1758974044278,2.92846362,4003.1,4003.0,0.5912]
[1758974047488,2.92846362,4003.1,4003.0,0.251]
[1758974049892,1.18339,4002.9,4002.8,3.4076]
[1758974050092,1.78546268,4002.9,4002.8,3.4076]
[1758974050294,1.78546268,4002.9,4002.8,3.2078]
[1758974050494,1.78546268,4002.9,4002.8,3.5249]
[1758974050702,1.78546268,4002.9,4002.8,3.9649]
[1758974050902,1.47606268,4002.9,4002.8,3.9649]
[1758974051997,1.47606268,4002.9,4002.8,4.2159]
[1758974052201,2.61218362,4002.9,4002.8,4.2159]
[1758974052703,2.92158362,4002.9,4002.8,4.2159]
[1758974056705,2.92171129,4002.9,4002.8,4.2159]
[1758974056905,1.47619035,4002.9,4002.8,4.2159]
[1758974057304,2.61231129,4002.9,4002.8,4.2159]
[1758974058207,2.61231129,4002.9,4002.8,4.66531]
[1758974059108,2.61231129,4002.9,4002.8,4.2159]
[1758974059502,2.92171129,4002.9,4002.8,4.2159]
[1758974060311,2.61231129,4002.9,4002.8,4.2159]
[1758974061107,2.92171129,4002.9,4002.8,4.2159]
[1758974061910,2.92171129,4002.9,4002.8,4.66531]
[1758974062211,2.92171129,4002.9,4002.8,4.2159]
[1758974062613,2.92171129,4002.9,4002.8,4.66531]